bitfinex-derivatives/quotes_BTCF0:USTF0_20250630
["timestamp","ask_amount","ask_price","bid_price","bid_amount"]
[1751292158441,0.1878815,107570.0,107560.0,1.60324986]
[1751292159246,0.002,107570.0,107560.0,1.52899091]
[1751292159548,0.002,107570.0,107560.0,1.70324986]
[1751292159848,0.002,107570.0,107560.0,1.72169056]
[1751292160349,0.002,107570.0,107560.0,1.14889056]
[1751292160542,0.002,107570.0,107560.0,1.76371091]
[1751292161054,0.002,107570.0,107560.0,1.83796078]
[1751292161548,0.002,107570.0,107560.0,1.76371091]
[1751292161949,0.002,107570.0,107560.0,1.74918715]
[1751292162249,0.1878814,107570.0,107560.0,1.0561819]
[1751292162442,0.1878814,107570.0,107560.0,0.63927473]
[1751292162642,0.1878814,107570.0,107560.0,1.34679473]
[1751292162843,0.50478857,107570.0,107560.0,0.77399463]
[1751292163045,0.50478857,107570.0,107560.0,1.42103]
[1751292163444,0.86558857,107570.0,107560.0,1.06023]
[1751292164446,0.86558857,107570.0,107560.0,0.80005593]
[1751292164651,0.92998857,107570.0,107560.0,0.73835593]
[1751292164845,0.96238857,107570.0,107560.0,0.1051113]
[1751292165045,0.96238857,107570.0,107560.0,0.8125913]
[1751292167254,0.96238857,107570.0,107560.0,0.9984901]
[1751292167446,0.96238857,107570.0,107560.0,0.20225998]
[1751292167752,0.96238857,107570.0,107560.0,0.72388118]
[1751292168154,0.96238857,107570.0,107560.0,0.90977998]
[1751292170753,0.98518433,107570.0,107560.0,0.72388118]
[1751292170953,0.98518433,107570.0,107560.0,0.94237998]
[1751292171150,0.98518433,107570.0,107560.0,0.78948118]
[1751292171448,0.98518433,107570.0,107560.0,0.72388118]
[1751292172142,0.96238857,107570.0,107560.0,0.01636118]
[1751292172346,0.5486814,107570.0,107560.0,0.72388118]
[1751292172545,0.86558857,107570.0,107560.0,0.78948118]
[1751292172846,0.86558857,107570.0,107560.0,0.72388118]
[1751292172847,0.89698857,107570.0,107560.0,0.72388118]
[1751292173049,0.92978857,107570.0,107560.0,0.73841096]
[1751292173348,0.92978857,107570.0,107560.0,0.72388118]
[1751292173952,0.92978857,107570.0,107560.0,0.73841148]
[1751292174154,0.92978857,107570.0,107560.0,0.16561148]
[1751292174653,0.92978857,107570.0,107560.0,0.15108118]
[1751292175757,0.92978857,107570.0,107560.0,0.16561149]
[1751292176350,0.92978857,107570.0,107560.0,0.001]
[1751292176558,1.13849061,107570.0,107560.0,0.001]
[1751292176748,1.71129061,107570.0,107560.0,0.01553029]
[1751292177053,1.71129061,107570.0,107560.0,0.001]
[1751292177253,2.21129061,107570.0,107560.0,0.01553098]
[1751292180251,2.21129061,107570.0,107560.0,8e-08]
[1751292180552,0.185916,107550.0,107540.0,0.18090636]
[1751292180753,1.24136684,107550.0,107540.0,0.19499289]
[1751292181054,1.24136684,107550.0,107540.0,0.16409289]
[1751292181055,1.87926684,107550.0,107540.0,0.16409289]
[1751292181861,1.88026684,107550.0,107540.0,0.16809289]
[1751292182256,1.88026684,107550.0,107540.0,0.03337289]
[1751292182460,1.88026684,107550.0,107540.0,0.03137289]
[1751292184554,1.90290501,107550.0,107540.0,0.03137289]
[1751292185762,1.33010501,107550.0,107540.0,0.03137289]
[1751292187662,1.33010501,107550.0,107540.0,0.01608653]
[1751292187851,1.33010501,107550.0,107540.0,0.04858653]
[1751292187852,1.26500501,107550.0,107540.0,0.04858653]
[1751292188057,1.26500501,107550.0,107540.0,0.07888653]
[1751292190858,1.26496231,107550.0,107540.0,0.01608653]
[1751292191063,1.30506684,107550.0,107540.0,0.01608653]
[1751292191861,1.30506684,107550.0,107540.0,0.08158653]
[1751292192268,1.32766498,107550.0,107540.0,0.09612006]
[1751292192465,1.01075781,107550.0,107540.0,0.09612006]
[1751292192668,1.24236684,107550.0,107540.0,0.28205336]
[1751292192862,0.92545967,107550.0,107540.0,0.59896053]
[1751292193058,0.92545967,107550.0,107540.0,0.28205336]
[1751292194172,0.92545967,107550.0,107540.0,0.29762786]
[1751292194374,0.56465967,107550.0,107540.0,0.61453503]
[1751292194568,0.20385967,107550.0,107540.0,0.61453503]
[1751292195376,0.20385967,107550.0,107540.0,0.28354133]
[1751292195674,0.20385967,107550.0,107540.0,0.2975472]
[1751292196072,0.20385967,107550.0,107540.0,0.28354133]
[1751292196875,0.20385967,107550.0,107540.0,0.29753414]
[1751292197072,0.56465967,107550.0,107540.0,0.29753414]
[1751292199678,0.88156684,107550.0,107540.0,0.11160084]
[1751292199983,0.88156684,107550.0,107540.0,1.00509404]
[1751292200568,0.88156684,107550.0,107540.0,0.81916084]
[1751292200984,0.88156684,107550.0,107540.0,0.24632084]
[1751292201275,0.88156684,107550.0,107540.0,0.81916084]
[1751292202180,0.88156684,107550.0,107540.0,1.00509404]
[1751292202381,0.88156684,107550.0,107540.0,0.81916084]
[1751292203882,0.90412387,107550.0,107540.0,0.81916084]
[1751292204975,0.90412387,107550.0,107540.0,0.80516803]
[1751292206172,0.90412387,107550.0,107540.0,0.80516702]
[1751292206678,0.90412387,107550.0,107540.0,0.16682702]
[1751292206987,0.96753863,107550.0,107540.0,0.72405252]
[1751292208083,0.96753863,107550.0,107540.0,0.01653252]
[1751292209186,0.96753863,107550.0,107540.0,0.002]
[1751292210185,0.96753863,107550.0,107540.0,0.01653332]
[1751292210681,0.96753863,107550.0,107540.0,0.03056705]
[1751292216994,0.96753863,107550.0,107540.0,0.06256705]
[1751292217186,0.58723146,107550.0,107540.0,0.37947422]
[1751292217382,0.58723146,107550.0,107540.0,0.41237422]
[1751292217587,0.90413863,107550.0,107540.0,0.09546705]
[1751292221995,0.88156684,107550.0,107540.0,0.09546705]
[1751292222587,0.88156684,107550.0,107540.0,0.03056705]
[1751292222790,0.94606684,107550.0,107540.0,0.03056705]
[1751292222994,0.96853663,107550.0,107540.0,0.03056705]
[1751292224292,0.1859331,107540.0,107530.0,1.54504993]
[1751292224491,0.95934027,107540.0,107530.0,1.54504993]
[1751292225193,0.95934027,107540.0,107530.0,0.83768993]
[1751292225691,0.96034027,107540.0,107530.0,1.41540993]
[1751292225888,0.98281229,107540.0,107530.0,1.41540993]
[1751292227902,0.99228328,107540.0,107530.0,1.41540993]
[1751292228106,0.99228328,107540.0,107530.0,0.00592993]
[1751292228395,0.96981126,107540.0,107530.0,0.00592993]
[1751292229301,0.99226889,107540.0,107530.0,0.00592993]
[1751292232399,0.9827979,107540.0,107530.0,0.00292993]
[1751292233296,0.9827979,107540.0,107530.0,0.03552993]
[1751292233496,0.9185979,107540.0,107530.0,0.09642993]
[1751292233698,0.8870979,107540.0,107530.0,0.09642993]
[1751292236403,0.8870979,107540.0,107530.0,0.12512789]
[1751292236605,0.8870979,107540.0,107530.0,0.12512787]
[1751292237206,0.8870979,107540.0,107530.0,0.09642993]
[1751292237600,0.8870979,107540.0,107530.0,0.12508096]
[1751292237801,0.8870979,107540.0,107530.0,0.11059227]
[1751292238001,0.8870979,107540.0,107530.0,0.09642993]
[1751292238206,0.8870979,107540.0,107530.0,0.11091912]
[1751292238407,0.8870979,107540.0,107530.0,0.12508195]
[1751292238704,0.8870979,107540.0,107530.0,0.11091912]
[1751292239103,0.8870979,107540.0,107530.0,0.12508195]
[1751292240804,1.0876999,107540.0,107530.0,0.11059276]
[1751292241503,1.06524227,107540.0,107530.0,0.29654316]
[1751292241703,0.7483351,107540.0,107530.0,0.61345033]
[1751292242410,0.7483351,107540.0,107530.0,0.29654316]
[1751292243310,0.7483351,107540.0,107530.0,0.86918316]
[1751292244711,0.7483351,107540.0,107530.0,0.68323276]
[1751292244903,0.7483351,107540.0,107530.0,0.86918316]
[1751292245499,0.7483351,107540.0,107530.0,0.68323276]
[1751292245896,0.7483351,107540.0,107530.0,0.86918316]
[1751292246711,1.06524227,107540.0,107530.0,0.86918316]
[1751292247010,1.06524227,107540.0,107530.0,0.68323276]
[1751292248108,1.06524227,107540.0,107530.0,0.86918326]
[1751292248305,0.7483351,107540.0,107530.0,0.86918326]
[1751292249110,0.7483351,107540.0,107530.0,1.18609043]
[1751292249611,0.7483351,107540.0,107530.0,0.86918326]
[1751292251306,0.7483351,107540.0,107530.0,0.68323276]
[1751292251503,1.06524227,107540.0,107530.0,0.68323276]
[1751292252203,1.06524227,107540.0,107530.0,0.86918316]
[1751292254706,0.7483351,107540.0,107530.0,0.86918316]
[1751292255012,0.8683351,107540.0,107530.0,0.86918316]
[1751292255206,0.8683351,107540.0,107530.0,0.68323276]
[1751292255713,1.18524227,107540.0,107530.0,0.68323276]
[1751292256413,1.18524227,107540.0,107530.0,0.11059276]
[1751292256712,1.18524227,107540.0,107530.0,0.81763276]
[1751292257414,1.18524227,107540.0,107530.0,0.81754168]
[1751292259418,1.18524227,107540.0,107530.0,0.81750168]
[1751292262012,1.18524227,107540.0,107530.0,1.00345208]
[1751292262315,1.18524227,107540.0,107530.0,0.81750168]
[1751292262916,0.8683351,107540.0,107530.0,1.00345208]
[1751292263112,0.8683351,107540.0,107530.0,1.32035925]
[1751292263311,0.52990042,107540.0,107530.0,1.68115925]
[1751292263618,0.5075351,107540.0,107530.0,1.6670875]
[1751292264710,0.5075351,107540.0,107530.0,1.74132287]
[1751292265513,0.5075351,107540.0,107530.0,1.95307149]
[1751292265713,0.321602,107540.0,107530.0,1.96841774]
[1751292266017,0.321602,107540.0,107530.0,2.04272995]
[1751292266320,0.5075351,107540.0,107530.0,2.04272995]
[1751292267026,0.5075351,107540.0,107530.0,1.96841774]
[1751292267213,0.5075351,107540.0,107530.0,1.94271843]
[1751292268612,0.5075351,107540.0,107530.0,1.92737218]
[1751292268818,0.5075351,107540.0,107530.0,1.94282312]
[1751292269122,0.5075351,107540.0,107530.0,1.75683913]
[1751292269523,0.5075351,107540.0,107530.0,1.43993196]
[1751292270313,0.5075351,107540.0,107530.0,1.75683913]
[1751292272416,0.321602,107540.0,107530.0,1.75683913]
[1751292272620,0.29103495,107540.0,107530.0,1.87523809]
[1751292272821,0.29103495,107540.0,107530.0,2.06122208]
[1751292274123,0.29103495,107540.0,107530.0,2.06100181]
[1751292275023,0.29103495,107540.0,107530.0,2.06080181]
[1751292275824,0.47696805,107540.0,107530.0,0.85111065]
[1751292276036,0.35696805,107540.0,107530.0,1.87481782]
[1751292276630,0.35696805,107540.0,107530.0,1.55791065]
[1751292276817,0.35696805,107540.0,107530.0,1.78211817]
[1751292278122,0.17103495,107540.0,107530.0,1.87481782]
[1751292278327,0.17103495,107540.0,107530.0,1.78211817]
[1751292278528,0.17103495,107540.0,107530.0,1.87481782]
[1751292279325,0.17103495,107540.0,107530.0,1.78211817]
[1751292280427,0.29549465,107570.0,107560.0,0.1858984]
[1751292280723,0.29549465,107570.0,107560.0,1.20956557]
[1751292281028,0.24902305,107570.0,107560.0,1.24106557]
[1751292281327,0.20254545,107570.0,107560.0,1.6760671]
[1751292283018,0.20654545,107570.0,107560.0,1.6770671]
[1751292283224,0.20654545,107570.0,107560.0,1.60286557]
[1751292283520,0.20654545,107570.0,107560.0,1.24206557]
[1751292283521,0.40714745,107570.0,107560.0,1.24206557]
[1751292283726,0.40714745,107570.0,107560.0,1.27496557]
[1751292284638,0.40714745,107570.0,107560.0,0.26075234]
[1751292284939,0.43954745,107570.0,107560.0,0.96727234]
[1751292285521,0.75645462,107570.0,107560.0,0.90287234]
[1751292285721,0.78935462,107570.0,107560.0,0.90287234]
[1751292286329,0.47244745,107570.0,107560.0,0.90287234]
[1751292288935,0.47244745,107570.0,107560.0,0.3212585]
[1751292289141,1.15015462,107570.0,107560.0,0.70748]
[1751292289533,1.15015462,107570.0,107560.0,0.8933785]
[1751292289735,1.15015462,107570.0,107560.0,0.70748]
[1751292290033,1.15015462,107570.0,107560.0,0.8933785]
[1751292291346,1.15015462,107570.0,107560.0,0.70748]
[1751292291545,1.15015462,107570.0,107560.0,0.8933785]
[1751292292541,1.15015462,107570.0,107560.0,0.70748]
[1751292292742,1.15015462,107570.0,107560.0,0.8933785]
[1751292294844,1.15015462,107570.0,107560.0,0.70748]
[1751292295143,1.15015462,107570.0,107560.0,0.8933787]
[1751292295346,1.15015462,107570.0,107560.0,0.70748]
[1751292299949,0.83324745,107570.0,107560.0,0.70748]
[1751292300153,1.15015462,107570.0,107560.0,0.70748]
[1751292301448,1.15015462,107570.0,107560.0,0.8933787]
[1751292301653,0.83324745,107570.0,107560.0,0.8933787]
[1751292301850,0.40714745,107570.0,107560.0,1.24108587]
[1751292302149,0.40714745,107570.0,107560.0,1.27398587]
[1751292303354,0.40714745,107570.0,107560.0,0.9570787]
[1751292303555,0.40714745,107570.0,107560.0,0.77118]
[1751292303755,1.11625462,107570.0,107560.0,0.77118]
[1751292304751,1.14845462,107570.0,107560.0,0.70736]
[1751292305752,1.14845462,107570.0,107560.0,1e-07]
[1751292305959,1.14845462,107570.0,107560.0,0.5720001]
[1751292306255,1.14845462,107570.0,107560.0,1e-07]
[1751292311062,1.1708177,107570.0,107560.0,1e-07]
[1751292315565,1.7427777,107570.0,107560.0,1e-07]
[1751292317265,1.1708177,107570.0,107560.0,1e-07]
[1751292320156,1.15415335,107570.0,107560.0,1e-07]
[1751292320563,1.17076049,107570.0,107560.0,1e-07]
[1751292323562,0.85385332,107570.0,107560.0,1e-07]
[1751292323768,1.15415335,107570.0,107560.0,1e-07]
[1751292324068,1.1707526,107570.0,107560.0,1e-07]
[1751292326061,0.82164543,107570.0,107560.0,1e-07]
[1751292326266,1.08478952,107570.0,107560.0,1e-07]
[1751292326464,1.08478952,107570.0,107560.0,0.0620001]
[1751292331174,1.10713244,107570.0,107560.0,0.0620001]
[1751292331571,1.10713244,107570.0,107560.0,1e-07]
[1751292331776,1.17073244,107570.0,107560.0,1e-07]
[1751292333671,0.185916,107550.0,107540.0,0.01543872]
[1751292333969,0.1859333,107540.0,107530.0,0.19808]
[1751292334172,0.86364047,107540.0,107530.0,0.19808]
[1751292334576,0.86364047,107540.0,107530.0,0.0638]
[1751292334778,0.86364047,107540.0,107530.0,0.19808]
[1751292335272,1.06424247,107540.0,107530.0,0.19808]
[1751292335877,1.06524247,107540.0,107530.0,0.19908]
[1751292336781,1.06524247,107540.0,107530.0,0.23188]
[1751292337882,0.7483353,107540.0,107530.0,0.4178306]
[1751292338282,0.7483353,107540.0,107530.0,0.23188]
[1751292338882,0.7483353,107540.0,107530.0,0.4178306]
[1751292339477,0.3875353,107540.0,107530.0,0.73473777]
[1751292339675,0.3875353,107540.0,107530.0,1.09553777]
[1751292340882,0.3875353,107540.0,107530.0,1.63152176]
[1751292341384,0.3875353,107540.0,107530.0,1.38152176]
[1751292341580,0.3875353,107540.0,107530.0,1.47422141]
[1751292345586,0.3875353,107540.0,107530.0,1.28823742]
[1751292346885,0.3875353,107540.0,107530.0,1.08217025]
[1751292347084,0.3875353,107540.0,107530.0,0.9894706]
[1751292347885,0.3875353,107540.0,107530.0,1.06375206]
[1751292349488,1.06524247,107540.0,107530.0,1.06375206]
[1751292349682,0.7483353,107540.0,107530.0,1.06375206]
[1751292349980,0.7473353,107540.0,107530.0,1.06275206]
[1751292350187,0.7503353,107540.0,107530.0,1.06375206]
[1751292350586,0.7523353,107540.0,107530.0,1.06375206]
[1751292353185,0.7523353,107540.0,107530.0,0.49199206]
[1751292353387,1.06924247,107540.0,107530.0,0.9578306]
[1751292353589,0.7852353,107540.0,107530.0,0.9578306]
[1751292353787,0.7852353,107540.0,107530.0,1.03211206]
[1751292356690,0.7852353,107540.0,107530.0,0.99931206]
[1751292356889,0.8168353,107540.0,107530.0,0.99931206]
[1751292357785,1.13374247,107540.0,107530.0,0.99931206]
[1751292357985,1.13374247,107540.0,107530.0,0.96711206]
[1751292358689,1.13374247,107540.0,107530.0,0.20944146]
[1751292358895,1.13374247,107540.0,107530.0,0.78112146]
[1751292359391,1.13374247,107540.0,107530.0,0.07528146]
[1751292359590,1.13374247,107540.0,107530.0,0.001]
[1751292359789,1.13374247,107540.0,107530.0,0.57268]
[1751292359985,1.13374247,107540.0,107530.0,0.001]
[1751292360293,1.13374247,107540.0,107530.0,0.01505096]
[1751292360490,0.8168353,107540.0,107530.0,0.58673096]
[1751292360689,1.13374247,107540.0,107530.0,0.58673096]
[1751292362295,1.13374247,107540.0,107530.0,0.01505096]
[1751292362993,0.8168353,107540.0,107530.0,0.01505096]
[1751292363294,1.13374247,107540.0,107530.0,0.01505096]
[1751292366499,1.15609799,107540.0,107530.0,0.01505096]
[1751292366794,0.1859679,107520.0,107510.0,0.23177326]
[1751292367000,0.86367507,107520.0,107510.0,0.80345326]
[1751292367291,0.86367507,107520.0,107510.0,0.02471699]
[1751292367292,0.92617507,107520.0,107510.0,0.02471699]
[1751292367697,1.28697507,107520.0,107510.0,0.02471699]
[1751292368090,0.9075679,107520.0,107510.0,0.21070219]
[1751292368294,0.5691069,107520.0,107510.0,1.25434099]
[1751292368493,0.5467679,107520.0,107510.0,0.96863382]
[1751292368796,0.5477679,107520.0,107510.0,1.32004099]
[1751292369094,0.5477679,107520.0,107510.0,1.3344646]
[1751292369900,0.5477679,107520.0,107510.0,1.01755743]
[1751292370100,0.5477679,107520.0,107510.0,1.3344646]
[1751292370400,0.7483699,107520.0,107510.0,1.3344646]
[1751292371401,0.7483699,107520.0,107510.0,1.34404561]
[1751292371805,0.7483699,107520.0,107510.0,1.41900265]
[1751292372003,0.201602,107520.0,107510.0,1.77980265]
[1751292372400,0.3875702,107520.0,107510.0,1.76463403]
[1751292374305,0.3875702,107520.0,107510.0,1.75021042]
[1751292374492,0.3875702,107520.0,107510.0,1.43330325]
[1751292374696,0.3875702,107520.0,107510.0,1.75021042]
[1751292375005,0.3875702,107520.0,107510.0,1.38941042]
[1751292375901,0.5175702,107520.0,107510.0,1.38941042]
[1751292378008,0.331602,107520.0,107510.0,1.38941042]
[1751292378201,0.331602,107520.0,107510.0,1.75021042]
[1751292378706,0.331602,107520.0,107510.0,1.93623442]
[1751292378707,0.28595094,107520.0,107510.0,1.93623442]
[1751292379307,0.28595094,107520.0,107510.0,2.03623442]
[1751292379602,0.28595094,107520.0,107510.0,1.92449188]
[1751292379907,0.28595094,107520.0,107510.0,1.94291007]
[1751292380503,0.28595094,107520.0,107510.0,1.92436789]
[1751292383598,0.28595094,107520.0,107510.0,2.22036789]
[1751292384209,0.28595094,107520.0,107510.0,2.23891007]
[1751292384706,0.28595094,107520.0,107510.0,2.25391668]
[1751292385102,0.15595094,107520.0,107510.0,2.25391668]
[1751292385509,0.26595094,107520.0,107510.0,2.25391668]
[1751292387009,0.26595094,107520.0,107510.0,2.25411668]
[1751292389506,0.15595094,107520.0,107510.0,2.25411668]
[1751292389914,0.15595094,107520.0,107510.0,2.29076514]
[1751292393407,0.15595094,107520.0,107510.0,2.60767231]
[1751292393601,0.15595094,107520.0,107510.0,2.47678914]
[1751292394111,0.15595094,107520.0,107510.0,2.72678914]
[1751292394315,0.15595094,107520.0,107510.0,2.47678914]
[1751292398314,0.15595094,107520.0,107510.0,2.79369631]
[1751292398511,0.00860304,107520.0,107510.0,2.88639181]
[1751292398716,0.2831163,107550.0,107540.0,0.1859336]
[1751292398905,0.2831163,107550.0,107540.0,1.5849501]
[1751292398906,0.4131163,107550.0,107540.0,1.5849501]
[1751292400411,0.4191163,107550.0,107540.0,1.5859501]
[1751292401819,0.6197183,107550.0,107540.0,1.5859501]
[1751292402215,0.6197183,107550.0,107540.0,1.26904293]
[1751292402423,0.6197183,107550.0,107540.0,1.5859501]
[1751292402618,0.6197183,107550.0,107540.0,1.2251501]
[1751292402923,0.9805183,107550.0,107540.0,0.90864293]
[1751292404316,0.9805183,107550.0,107540.0,0.90888293]
[1751292404815,1.29742547,107550.0,107540.0,0.90888293]
[1751292405219,1.29742547,107550.0,107540.0,0.72294933]
[1751292405422,1.29142547,107550.0,107540.0,0.72194933]
[1751292405618,1.29542547,107550.0,107540.0,0.72294933]
[1751292405924,1.29542547,107550.0,107540.0,0.90888293]
[1751292407122,1.29542547,107550.0,107540.0,0.98303518]
[1751292408930,1.29542547,107550.0,107540.0,0.79710158]
[1751292409328,1.29542547,107550.0,107540.0,0.98303518]
[1751292411434,1.29542547,107550.0,107540.0,0.79710158]
[1751292411633,1.29542547,107550.0,107540.0,0.98303518]
[1751292413033,1.29542547,107550.0,107540.0,0.90888293]
[1751292415140,0.9785183,107550.0,107540.0,0.90888293]
[1751292415440,1.29542547,107550.0,107540.0,0.90888293]
[1751292415638,1.29542547,107550.0,107540.0,0.8934936]
[1751292416642,0.9785183,107550.0,107540.0,0.8934936]
[1751292417638,0.9785183,107550.0,107540.0,0.70756]
[1751292418839,1.29542547,107550.0,107540.0,0.96764585]
[1751292419241,1.29542547,107550.0,107540.0,0.78171225]
[1751292420235,1.29542547,107550.0,107540.0,0.07515225]
[1751292420639,1.29542547,107550.0,107540.0,0.001]
[1751292421345,1.34542547,107550.0,107540.0,1e-07]
[1751292421536,1.84542547,107550.0,107540.0,1e-07]
[1751292421738,2.15542547,107550.0,107540.0,1e-07]
[1751292422240,2.36379381,107550.0,107540.0,1e-07]
[1751292422433,2.38037704,107550.0,107540.0,1e-07]
[1751292422839,2.11379381,107550.0,107540.0,1e-07]
[1751292423946,2.13069652,107550.0,107540.0,1e-07]
[1751292425446,1.79688664,107550.0,107540.0,1e-07]
[1751292425638,2.13069099,107550.0,107540.0,1e-07]
[1751292425834,2.11379381,107550.0,107540.0,1e-07]
[1751292426235,1.94472299,107550.0,107540.0,1e-07]
[1751292426539,1.94473466,107550.0,107540.0,1e-07]
[1751292427039,1.62782749,107550.0,107540.0,1e-07]
[1751292427245,1.86468332,107550.0,107540.0,1e-07]
[1751292427440,2.02065132,107550.0,107540.0,1e-07]
[1751292427640,2.35065132,107550.0,107540.0,1e-07]
[1751292427946,2.12065132,107550.0,107540.0,1e-07]
[1751292428133,2.35065132,107550.0,107540.0,1e-07]
[1751292428635,1.94468332,107550.0,107540.0,1e-07]
[1751292429741,1.92777447,107550.0,107540.0,1e-07]
[1751292429944,1.94436547,107550.0,107540.0,1e-07]
[1751292430146,1.94483586,107550.0,107540.0,1e-07]
[1751292431048,2.16483586,107550.0,107540.0,1e-07]
[1751292431646,0.5113226,107540.0,107510.0,0.02514376]
[1751292431855,1.22447527,107520.0,107510.0,0.03922219]
[1751292432044,1.35447527,107520.0,107510.0,0.03922219]
[1751292432341,1.41857527,107520.0,107510.0,0.03922219]
[1751292432937,0.1860201,107490.0,107480.0,0.1342019]
[1751292433138,1.34452727,107490.0,107480.0,0.13520038]
[1751292433346,0.1860374,107480.0,107470.0,0.12604053]
[1751292433644,2.51464457,107480.0,107470.0,0.09374053]
[1751292434048,2.51464457,107480.0,107470.0,0.12604053]
[1751292434242,3.21155174,107480.0,107470.0,0.09374053]
[1751292434554,2.56500715,107480.0,107470.0,0.00093045]
[1751292434845,1.82319998,107480.0,107470.0,0.18698515]
[1751292435047,0.32319998,107480.0,107470.0,1.53403232]
[1751292435350,0.320602,107480.0,107470.0,1.53403232]
[1751292435549,0.320602,107480.0,107470.0,1.72012032]
[1751292435740,0.322602,107480.0,107470.0,1.82112032]
[1751292435942,0.272702,107480.0,107470.0,2.07112032]
[1751292436345,0.202602,107480.0,107470.0,2.07112032]
[1751292436541,0.202602,107480.0,107470.0,2.20720637]
[1751292437052,0.202602,107480.0,107470.0,2.20772927]
[1751292437654,0.212602,107480.0,107470.0,2.20772927]
[1751292437953,0.04241616,107480.0,107470.0,2.52463644]
[1751292438152,0.05041616,107480.0,107470.0,3.36083644]
[1751292438347,0.04141616,107480.0,107470.0,3.45564652]
[1751292438853,0.04141616,107480.0,107470.0,3.47049578]
[1751292439055,0.3254964,107510.0,107500.0,0.1860028]
[1751292439259,0.4554964,107510.0,107500.0,1.57398997]
[1751292439558,0.4554964,107510.0,107500.0,1.60568997]
[1751292439756,0.4554964,107510.0,107500.0,1.60850472]
[1751292440055,0.4554964,107510.0,107500.0,1.66326197]
[1751292440754,0.4554964,107510.0,107500.0,1.66378487]
[1751292441150,0.4554964,107510.0,107500.0,1.69388487]
[1751292441346,0.4584964,107510.0,107500.0,1.69488487]
[1751292441548,0.133,107510.0,107500.0,2.61701319]
[1751292441752,0.003,107510.0,107500.0,1.53578828]
[1751292441949,0.2789855,107510.0,107500.0,1.30620386]
[1751292442254,0.4795875,107510.0,107500.0,1.33762337]
[1751292442449,0.4795875,107510.0,107500.0,1.70938779]
[1751292442645,0.293602,107510.0,107500.0,1.99542779]
[1751292442858,0.203602,107510.0,107500.0,1.99542779]
[1751292443756,0.3895875,107510.0,107500.0,1.99542779]
[1751292443956,0.3895875,107510.0,107500.0,1.99574779]
[1751292444156,0.203602,107510.0,107500.0,1.99574779]
[1751292444455,0.203602,107510.0,107500.0,1.98132389]
[1751292444851,0.001,107540.0,107530.0,0.1859509]
[1751292445050,0.131,107540.0,107530.0,1.80753877]
[1751292445255,0.131,107540.0,107530.0,1.81241544]
[1751292445961,0.14,107540.0,107530.0,1.81341544]
[1751292446256,0.3259336,107540.0,107530.0,1.07105544]
[1751292446462,0.43134976,107540.0,107530.0,1.31027102]
[1751292446662,0.82384976,107540.0,107530.0,0.94947102]
[1751292446867,1.2121601,107540.0,107530.0,0.73216012]
[1751292447560,1.2121601,107540.0,107530.0,0.73236012]
[1751292447760,1.2091601,107540.0,107530.0,0.73236012]
[1751292448064,1.4097621,107540.0,107530.0,0.02104012]
[1751292448556,1.4097621,107540.0,107530.0,0.00577667]
[1751292450155,1.43283077,107540.0,107530.0,0.00577667]
[1751292451563,1.4097621,107540.0,107530.0,0.00577667]
[1751292454961,1.43314708,107540.0,107530.0,0.00577667]
[1751292457466,1.4097621,107540.0,107530.0,0.00577667]
[1751292457666,1.4097621,107540.0,107530.0,7e-08]
[1751292458662,1.43313624,107540.0,107530.0,7e-08]
[1751292459865,1.06147182,107540.0,107530.0,0.18595097]
[1751292460074,0.99668152,107540.0,107530.0,0.18595097]
[1751292460759,1.03809768,107540.0,107530.0,7e-08]
[1751292460966,1.03809768,107540.0,107530.0,0.18595097]
[1751292462764,1.03809768,107540.0,107530.0,0.71128007]
[1751292462971,0.90809768,107540.0,107530.0,0.89723097]
[1751292463171,0.93147441,107540.0,107530.0,0.89723097]
[1751292463472,0.93147441,107540.0,107530.0,0.71128007]
[1751292463669,0.93147441,107540.0,107530.0,0.72565264]
[1751292463870,1.24856085,107540.0,107530.0,0.72565264]
[1751292464376,1.22518412,107540.0,107530.0,0.71128007]
[1751292465774,1.22518412,107540.0,107530.0,0.89723097]
[1751292468576,1.22518412,107540.0,107530.0,0.71128007]
[1751292469076,1.24862352,107540.0,107530.0,0.71128007]
[1751292470565,1.24862352,107540.0,107530.0,7e-08]
[1751292470768,0.90809768,107540.0,107530.0,0.57516007]
[1751292470978,1.22518412,107540.0,107530.0,0.57516007]
[1751292471170,0.90809768,107540.0,107530.0,0.76111097]
[1751292471365,0.90809768,107540.0,107530.0,0.57516007]
[1751292471366,1.22518412,107540.0,107530.0,0.57516007]
[1751292472481,1.24863707,107540.0,107530.0,0.57516007]
[1751292473273,0.90809768,107540.0,107530.0,0.57516007]
[1751292473472,1.22518412,107540.0,107530.0,0.57516007]
[1751292474280,1.24859324,107540.0,107530.0,0.57516007]
[1751292476469,1.22518412,107540.0,107530.0,7e-08]
[1751292476672,2.009736,107540.0,107530.0,7e-08]
[1751292477281,0.1859686,107520.0,107510.0,0.07401436]
[1751292477580,0.1859859,107510.0,107500.0,1.62249436]
[1751292477883,0.9984885,107510.0,107500.0,1.62249436]
[1751292478181,0.9984885,107510.0,107500.0,1.62253436]
[1751292478882,0.9994885,107510.0,107500.0,1.62353436]
[1751292479879,0.9994885,107510.0,107500.0,1.63803196]
[1751292480286,1.2000905,107510.0,107500.0,1.63803196]
[1751292482192,1.2000905,107510.0,107500.0,1.5640176]
[1751292482391,0.88300406,107510.0,107500.0,1.7500207]
[1751292483191,0.88300406,107510.0,107500.0,1.7657231]
[1751292483392,0.88300406,107510.0,107500.0,1.78020786]
[1751292483998,0.88300406,107510.0,107500.0,1.7657231]
[1751292485193,0.88300406,107510.0,107500.0,1.78024769]
[1751292485795,0.88300406,107510.0,107500.0,1.7657231]
[1751292486499,0.88300406,107510.0,107500.0,1.56404311]
[1751292486700,0.88300406,107510.0,107500.0,1.75004621]
[1751292487001,1.2000905,107510.0,107500.0,1.56404311]
[1751292488498,1.2000905,107510.0,107500.0,0.85256311]
[1751292488800,1.2000905,107510.0,107500.0,1.56368311]
[1751292489001,1.2000905,107510.0,107500.0,0.85256311]
[1751292489301,1.2000905,107510.0,107500.0,1.56356311]
[1751292489601,0.22741926,107500.0,107490.0,0.13592]
[1751292489795,0.79853932,107500.0,107480.0,0.35506483]
[1751292490000,0.2799204,107490.0,107480.0,0.35506483]
[1751292490199,0.6407204,107490.0,107480.0,0.49098483]
[1751292490404,0.8413224,107490.0,107480.0,1.06598483]
[1751292491602,0.88573856,107490.0,107480.0,1.02447593]
[1751292492600,0.8443224,107490.0,107480.0,1.03846805]
[1751292492904,0.88573856,107490.0,107480.0,1.03846805]
[1751292493398,0.88573856,107490.0,107480.0,0.47877148]
[1751292493701,1.202825,107490.0,107480.0,1.05345148]
[1751292493901,1.202825,107490.0,107480.0,1.00695324]
[1751292494502,0.88573856,107490.0,107480.0,0.82091634]
[1751292494703,1.202825,107490.0,107480.0,0.82091634]
[1751292495400,1.202825,107490.0,107480.0,0.74490601]
[1751292495703,1.17832087,107490.0,107480.0,0.03430601]
[1751292495902,0.1860377,107480.0,107470.0,0.12415646]
[1751292496108,0.1860377,107480.0,107470.0,0.69859646]
[1751292496109,0.9688403,107480.0,107470.0,0.69859646]